Cogmind - Beta 10.2 @@@ ROGUE MODE // 2021.02.11 @ 11:10:17 Player: Hilbert Result: Destroyed by Y-45 Defender with Beam Rifle Performance ------------- Evolutions (1) 500 Regions Visited (3) 600 Robots Destroyed (13) 65 Value Destroyed (452) 452 Prototype IDs (0) 0 Alien Tech Used (0) 0 Bonus (0) 0 TOTAL SCORE: 1617 Bonus ------- None Cogmind --------- Core Integrity 0/400 Matter 300/300 Energy 100/100 System Corruption 4% Temperature Cool (9) Movement Core (100) Ox1 Location -9/Storage Parts ------- > --- POWER (1) -------- (None) > --- PROPULSION (3) --- (None) > --- UTILITY (3) ------ Small Storage Unit Terrain Scan Processor > --- WEAPON (2) ------- (None) > --- INVENTORY (6) ---- Light Treads Improved Heat Sink Improved Sensor Array Improved Light Cannon Mace Peak State ------------ > --- POWER ------------ Light Ion Engine > --- PROPULSION ------- Light Treads Light Treads Compact Wheel > --- UTILITY ---------- Small Storage Unit Improved Signal Interpreter Terrain Scan Processor > --- WEAPON ----------- Assault Rifle Assault Rifle > --- INVENTORY -------- Light Treads Improved Heat Sink Improved Sensor Array EM Pulse Gun Improved Light Cannon Mace [Rating: 12] Favorites ----------- Power Ion Engine Engine Ion Engine Propulsion Light Treads Treads Light Treads Leg Aluminum Leg Wheel Compact Wheel Utility Small Storage Unit Storage Small Storage Unit Processor Terrain Scan Processor Weapon Assault Rifle Energy Gun EM Pulse Gun Ballistic Gun Assault Rifle Impact Weapon Mace Build | -11 -10 -9 -9 ------- Run | Scr Mat Mat Sto Slots Evolved 2 | . . 2 . Power . | . . . . Propulsion 1 | . . 1 . Utility 1 | . . 1 . Weapon . | . . . . Parts Attached 11 | 2 1 4 4 Power 1 | . . . 1 Engine 1 | . . . 1 Core . | . . . . Reactor . | . . . . Propulsion 5 | 2 1 1 1 Treads 2 | 1 . 1 . Leg . | . . . . Wheel 3 | 1 1 . 1 Hover . | . . . . Flight . | . . . . Utility 2 | . . 1 1 Device . | . . . . Storage . | . . . . Processor 2 | . . 1 1 Hackware . | . . . . Protection . | . . . . Artifact . | . . . . Weapon 3 | . . 2 1 Energy Gun 1 | . . . 1 Energy Cannon . | . . . . Ballistic Gun 1 | . . 1 . Ballistic Cannon . | . . . . Launcher . | . . . . Special Weapon . | . . . . Impact Weapon 1 | . . 1 . Slashing Weapon . | . . . . Piercing Weapon . | . . . . Special Melee Weapon . | . . . . Unidentified Prototypes . | . . . . Parts Lost 12 | . 2 . 10 Power 2 | . . . 2 Propulsion 5 | . 1 . 4 Utility 1 | . . . 1 Weapon 4 | . 1 . 3 Highest Loss Streak 4 | . 2 . 4 Average Slot Usage (%) 84 | . 78 85 85 Engine 10 | . 14 11 10 Treads 17 | . 14 20 17 Wheel 10 | . 14 11 10 Storage 11 | . 14 11 11 Processor 16 | . . 11 20 Energy Gun 2 | . 7 . 1 Ballistic Gun 14 | . 14 18 13 Naked Turns . | . . . . Heaviest Build 13 | 13 13 13 13 Greatest Support 40 | 10 16 16 40 Greatest Overweight (x) 1 | 1 1 . 1 Average Overweight (x) . | 1 . . . Largest Inventory Capacity 6 | 6 6 6 6 Average Capacity 6 | 6 6 6 6 Most Carried 6 | 6 6 5 6 Average Carried 5 | 6 5 4 5 Final Capacity 6 | 6 6 6 6 Final Carried 6 | 6 5 5 5 Class Distribution -------------------- 100% | Mutant Dominant Class ---------------- Mutant | -10/Materials Mutant | -9/Materials Mutant | -9/Storage Resources | -11 -10 -9 -9 ----------- Run | Scr Mat Mat Sto Matter Collected 464 | 220 . 48 196 Remotely . | . . . . Salvage Created 494 | . 82 48 364 Parts 34 | . 4 6 24 Haulers Intercepted . | . . . . Recyclers Shooed 1 | . 1 . . Parts Field Recycled . | . . . . Retrieved Matter . | . . . . Parts Self-Destructed . | . . . . Prevented . | . . . . Kills | -11 -10 -9 -9 ------- Run | Scr Mat Mat Sto Combat Hostiles Destroyed 13 | . 2 3 8 Guns 11 | . . 3 8 AOE 2 | . 2 . . Classes Destroyed 3 | . 1 1 1 Swarmer 3 | . . 3 . Grunt 7 | . 2 . 5 Sentry 3 | . . . 3 Best Kill Streak 6 | . 2 3 6 Combat Bots Only 6 | . 2 3 6 Max Kills in Single Turn 2 | . 2 1 1 Gunslinging . | . . . . Exploded 2 | . 2 . . Melee . | . . . . Uniques/NPCs Destroyed . | . . . . Combat | -11 -10 -9 -9 -------- Run | Scr Mat Mat Sto Damage Taken 1428 | . 218 141 1069 Core 461 | . 61 24 376 Absorbed by Shields 12 | . . . 12 Core Remaining (%) 87 | 100 75 . . Volleys Fired 34 | . 1 5 28 Largest 2 | . 2 2 2 Hottest 60 | . 60 40 60 Shots Fired 66 | . 2 10 54 Gun 66 | . 2 10 54 Cannon . | . . . . Launcher . | . . . . Special . | . . . . Kinetic 57 | . 1 10 46 Thermal . | . . . . Explosive . | . . . . Electromagnetic 9 | . 1 . 8 Robot Hit Streak 13 | . 2 6 13 Robot Miss Streak 4 | . . 4 2 Penetration Max . | . . . . Secondary Targets 3 | . . 1 2 Max Gunslinging Chain 1 | . . 1 1 Shots Hit Robots 50 | . 2 6 42 Core Hits 23 | . 2 3 18 Critical Hits . | . . . . Critical Kills . | . . . . Critical Parts Destroyed . | . . . . Melee Attacks . | . . . . Impact . | . . . . Slashing . | . . . . Piercing . | . . . . Sneak Attacks . | . . . . Combat Hostiles . | . . . . Follow-up Attacks . | . . . . Damage Inflicted 946 | . 180 74 692 Guns 637 | . 13 74 550 Cannons . | . . . . Explosions 302 | . 167 . 135 Melee . | . . . . Ramming 7 | . . . 7 Kinetic 527 | . . 74 453 Thermal 235 | . 100 . 135 Explosive 67 | . 67 . . Electromagnetic 110 | . 13 . 97 Impact . | . . . . Slashing . | . . . . Piercing . | . . . . Highest Corruption 4 | . . . 4 Average Corruption 3 | . . . 3 Corruption Purged . | . . . . Effects 2 | . . . 2 Matter Fused 1 | . . . 1 Energy Discharges 1 | . . . 1 Overload Shots . | . . . . Overflow Damage 116 | . 104 . 12 Projectiles . | . . . . Explosions 116 | . 104 . 12 Melee . | . . . . Knockbacks . | . . . . Impact . | . . . . Kinetic . | . . . . Secondary . | . . . . Self-Inflicted Damage 126 | . 123 . 3 Shots 2 | . 2 . . Rammed 2 | . . . 2 Targets Rammed 2 | . . . 2 Kicked . | . . . . Crushed . | . . . . Highest Temperature 15 | . 12 . 15 Average Temperature 9 | . 12 . 8 Received Heat Transfer 511 | . 51 9 451 Siege Activations . | . . . . Robots Corrupted . | . . . . Combat Hostiles . | . . . . Parts Fried . | . . . . Impact Corruptions . | . . . . Robots Melted . | . . . . Combat Hostiles . | . . . . Parts Melted . | . . . . Heat Transferred 350 | . 150 . 200 Parts Sabotaged . | . . . . Parts Stolen . | . . . . Parts Stripped . | . . . . Power Chain Reactions 4 | . 1 . 3 Missiles Intercepted . | . . . . Alert | -11 -10 -9 -9 ------- Run | Scr Mat Mat Sto Peak Influence 283 | . 45 103 283 Initial 42 | . . 18 42 Average 111 | . 20 57 141 Maximum Alert Level 1 | . . . 1 Low Security (%) 77 | 100 100 100 68 Level 1 22 | . . . 31 Level 2 . | . . . . Level 3 . | . . . . Level 4 . | . . . . Level 5 . | . . . . High Security . | . . . . Max Security . | . . . . Squads Dispatched 7 | . 1 . 6 Investigation . | . . . . Extermination . | . . . . Reinforcement 4 | . 1 . 3 Assault . | . . . . Garrison 3 | . . . 3 Intercept . | . . . . Construction Impeded 1 | . . . 1 Haulers Reinforced . | . . . . Stealth | -11 -10 -9 -9 --------- Run | Scr Mat Mat Sto Distress Signals 2 | . . . 2 Communications Jammed . | . . . . Distress Signals . | . . . . Times Spotted 33 | . 5 4 24 Peak Tracking Total 10 | . 2 3 10 Tactical Retreats 3 | . . . 3 Traps | -11 -10 -9 -9 ------- Run | Scr Mat Mat Sto Traps Triggered 1 | . . . 1 Indirectly . | . . . . Trap Hack Attempts . | . . . . Triggered . | . . . . Disarmed . | . . . . Reprogrammed . | . . . . Reused . | . . . . Traps Extracted . | . . . . Installed . | . . . . Triggered . | . . . . Machines | -11 -10 -9 -9 ---------- Run | Scr Mat Mat Sto Machines Disabled 1 | . 1 . . Max in Single Turn 1 | . 1 . . Machines Sabotaged . | . . . . Garrisons Compromised . | . . . . Overloaded Fab Kills . | . . . . Fab Network Shutdowns . | . . . . Hacking | -11 -10 -9 -9 --------- Run | Scr Mat Mat Sto Machines Accessed 3 | . . . 3 Terminals 3 | . . . 3 Fabricators . | . . . . Repair Stations . | . . . . Recycling Units . | . . . . Scanalyzers . | . . . . Garrison Access . | . . . . Total Hacks 9 | . . . 9 Successful 5 | . . . 5 Failed 4 | . . . 4 Catastrophic . | . . . . Database Lockouts . | . . . . Manual 3 | . . . 3 Terminals 9 | . . . 9 Fabricators . | . . . . Repair Stations . | . . . . Recycling Units . | . . . . Scanalyzers . | . . . . Garrison Access . | . . . . Terminal Hacks 3 | . . . 3 Robot Analysis 1 | . . . 1 Open Door 1 | . . . 1 Locate Traps 1 | . . . 1 Fabricator Hacks . | . . . . Repair Station Hacks . | . . . . Recycling Unit Hacks . | . . . . Scanalyzer . | . . . . Garrison Access Hacks . | . . . . Unauthorized Hacks 2 | . . . 2 Terminals 2 | . . . 2 Botnet 2 | . . . 2 Fabricators . | . . . . Repair Stations . | . . . . Recycling Units . | . . . . Scanalyzers . | . . . . Garrison Access . | . . . . Data Cores Recovered . | . . . . Used . | . . . . Hacking Detections 2 | . . . 2 Full Trace Events . | . . . . Feedback Events . | . . . . Feedback Blocked . | . . . . Robot Schematics Acquired . | . . . . Robots Built . | . . . . Matter . | . . . . Time . | . . . . Total Robot Build Rating . | . . . . Part Schematics Acquired . | . . . . Parts Built . | . . . . Matter . | . . . . Time . | . . . . Total Part Build Rating . | . . . . Parts Repaired . | . . . . Time . | . . . . Parts Recycled . | . . . . Recycled Matter . | . . . . Retrieved Matter . | . . . . Retrieved Components . | . . . . Parts Scanalyzed . | . . . . Part Schematics Acquired . | . . . . Parts Damaged . | . . . . Bothacking | -11 -10 -9 -9 ------------ Run | Scr Mat Mat Sto Used RIF Installer . | . . . . Robots Hacked . | . . . . Non-combat . | . . . . Combat . | . . . . Robot Hacks Applied . | . . . . Relay Couplers Released . | . . . . Robots Rewired . | . . . . Allies Hacked . | . . . . Hacks Repelled . | . . . . Allies | -11 -10 -9 -9 -------- Run | Scr Mat Mat Sto Total Allies . | . . . . Largest Group . | . . . . Highest-Rated Group . | . . . . Highest-Rated Ally . | . . . . Total Orders . | . . . . Ally Attacks . | . . . . Total Damage . | . . . . Kills . | . . . . Allies Corrupted . | . . . . Allies Melted . | . . . . Intel | -11 -10 -9 -9 ------- Run | Scr Mat Mat Sto Robot Analysis Total 1 | . . . 1 Derelict Logs Recovered . | . . . . Drone Launches . | . . . . Drone Recoveries . | . . . . Exploration | -11 -10 -9 -9 ------------- Run | Scr Mat Mat Sto Turns Passed 661 | 6 84 99 472 Spaces Moved 526 | 4 79 77 366 Core 22 | . . . 22 Treads 5 | . . . 5 Legs . | . . . . Wheels 499 | 4 79 77 339 Hover . | . . . . Flight . | . . . . Fastest Speed 90 | 90 90 100 100 Average Speed 99 | 90 94 100 100 Slowest Speed 160 | 90 100 100 160 Overloaded Moves . | . . . . Propulsion Burnouts . | . . . . Robots Hopped . | . . . . Cave-ins Triggered . | . . . . Exploration Rate (%) 25 | 2 22 13 63 Regions Visited 3 Branch Regions 1 Pre-discovered Areas . | . . . . Known Exits Taken . | . . . . Unknown Exits Taken 3 | 1 1 1 . Scrap Searched . | . . . . Spaces Dug . | . . . . Terrain Destroyed 32 | . 24 . 8 Melee . | . . . . Projectile . | . . . . AOE 32 | . 24 . 8 Terrain Rammed . | . . . . Walls Destroyed . | . . . . Machines Disabled . | . . . . Actions | -11 -10 -9 -9 --------- Run | Scr Mat Mat Sto Total 593 | 5 87 87 414 Wait 9 | . 3 1 5 Move 523 | 3 78 76 366 Hop . | . . . . Pick Up 5 | . 2 1 2 Fast Attach 4 | . . 2 2 Attach 4 | . 1 1 2 Detach . | . . . . Swap 3 | 2 . 1 . Drop 2 | . 2 . . Fire 34 | . 1 5 28 Melee . | . . . . Ram 2 | . . . 2 Kick . | . . . . Crush . | . . . . Escape Stasis 7 | . . . 7 Rewire . | . . . . Trap . | . . . . Miscellaneous . | . . . . Route ------- -11/Scrapyard -10/Materials -9/Materials -9/Storage History --------- Turn | Location | Event 4 | -11/Scrapyard | Discovered new exit (range 1) 7 | -11/Scrapyard | Entered Materials 83 | -10/Materials | Discovered new exit (range 9) 91 | -10/Materials | Entered another Materials area 91 | -9/Materials | Evolved 2 slots: Propulsion x1, Utility x1 185 | -9/Materials | Discovered new exit (range 6) 190 | -9/Materials | Entered Storage 313 | -9/Storage | Build established: Mutant 368 | -9/Storage | Garrison activated, responded to threat 539 | -9/Storage | Core integrity fell below 50% 563 | -9/Storage | Lost 3 parts (1n2w) 653 | -9/Storage | Core integrity fell below 20% 662 | -9/Storage | Destroyed by Y-45 Defender with Beam Rifle Last Messages --------------- 00527_ Field strength at 57. 00528_ Field strength at 44. 00529_ Field strength at 34. 00530_ Field strength at 21. 00531_ Field strength at 11. 00532_ EM Pulse Gun destroyed. 00532_ Stasis field depleted. 00555_ G-34 Mercenary destroyed. 00596_ ALERT: Hostiles spotted, dispatching reinforcements to Terminal S015. 00598_ O-16 Technician sends out distress signal. 00598_ O-16 Technician: "IFF HANDSHAKE FAILED. SECURING TERMINAL." 00606_ ALERT: Hostiles spotted, dispatching reinforcements to Terminal S013. 00616_ System corrupted: Matter fused (-10). 00639_ Lgt. Ion Engine destroyed. 00640_ Com. Wheel destroyed. 00641_ Lgt. Treads destroyed. 00641_ Imp. Signal Interpreter destroyed. 00643_ System corrupted: Energy discharge (-21). Map ----- +----------------------------------------------------+ | | | ???????????????????????????????????????????????? | | ???????????????????????????????????????????????? | | ???????????????????????????????????????????????? | | ??????#######??????????????????????????????????? | | ??#???# [ !#################################??? | | #"""#?# # +=! #^^^ #??? | | #"G"#?# # ################ #^^^ ###? | | #" "### # #??????????????# ! #^^""" ""#? | | #==[ %+= #??????????????# + """ T"#? | | ]! #![*= # #??????????????# ! # """ ""#? | | !! #!![= # #??????????????# # ###? | | ! ##+#### #??????????????# # [ #??? | | ? ##%#??# #??????????????#######+##+## #??? | | ? "#%#### #??????????????????????????# #??? | | ##" [ ## #??????????????????????????# #??? | | % [%= +??????????????????????????# #??? | | ## ! #??????????????????????????# #??? | | ## ##????????##+################ #??? | | "" #?????????# a + # #??? | | #"! #?????????# ##### """" # ###? | | #=%"######### #?????????+ #???# ""??" # #? | | ## ### ####?? #?????????# #???# ""???" + #? | | ?# # #?? +?????????+ #???# "???"" # #? | | ?# # !// #?????????????# #???# "??"" # #? | | ?# # !// #?????????????#@ #???# """" # #? | | ?# # /// #?????????????# #???# # #? | | ?# # #?????????????# #???########### #? | | ?# + !#?????????????# #?????????????# #? | | ?##########?????????????# #?????????????# #? | | ????# ! ???????? ????# #?????????##### #? | | ????# ??????# "??# #?????????#!!## #? | | ????# """ #?# """# #?????????#!!## #? | | ????# """ #?# + #?????????# ## #? | | ????# #?# """# #????????## ## #? | | ????# """ #?# "??# #????????#T + #? | | ????# """ #??? ????# #????????## # #? | | "???? """ #??????????# #?????????##### #? | | Y"????? ???????????##g Y##????????????# #? | | ""?######+############## w ### #??????# #? | | ???# #??????# #? | | ???# ### #??????# #? | | ???# #????##??????# #? | | ???######/############## #??????####### #? | | ????# #????????###+###??# #? | | ????# """" #??????????????????????###### #? | | ????# "???" #???????????????????????????# #? | | ????# "????" #???????????????????????????# #? | | ????# "???"" #???????????????????????????# #? | | ????# "??"" #???????????????????????????# #? | +----------------------------------------------------+ Best States ------------- Heat Dissipation 28 Energy Generation 10 Energy Capacity 250 Matter Stores 300 Matter Capacity 300 Sight Range 16 Terrain Scan Density 85 Evasion (%) 42 Recoil Reduction 2 Item Schematics ----------------- None Robot Schematics ------------------ None Fabricated ------------ Nothing Alien Tech Used ----------------- None Achievements -------------- None Challenges ------------ None Game ------ Seed StorageParticleBiocell Manual? 0 Play Time 00:10:21 Cumulative 33.9 hours Start 2021.02.11 @ 11:01:25 End 2021.02.11 @ 11:10:17 Sessions 1 Manual Loads 0 Difficulty Rogue Special Mode None Game No. 74 Rogue 74 Adventurer 0 Explorer 0 Win Type - Total 0 Types 0/0/0/0/0/0/0/0/0 Lore% 31 Gallery% 37 Achievement% 27 Wizard Run 0 Options --------- ASCII 0 Keyboard 1 Movement Vi Keybinds 0 Fullscreen 1 Font 18/SmallcapsGlow Map View 76x50 Tactical HUD 1 Map Filters NONE Filters NONE Steam 1 RUN: ef462bec-cb15-4133-b255-a3900f73ad2c